bitfinex-derivatives/quotes_BTCF0:USTF0_20250728
["timestamp","ask_amount","ask_price","bid_price","bid_amount"]
[1753739639955,0.23830608,118100.0,118090.0,1.06232]
[1753739640762,0.23830608,118100.0,118090.0,1.06332]
[1753739641059,0.23830608,118100.0,118090.0,0.37828]
[1753739641060,0.56367844,118100.0,118090.0,0.37828]
[1753739641258,0.70743745,118100.0,118090.0,1.06276]
[1753739641863,0.83933745,118100.0,118090.0,1.06276]
[1753739644157,0.83943857,118100.0,118090.0,1.06276]
[1753739644458,0.83933745,118100.0,118090.0,1.06304]
[1753739645158,0.83942575,118100.0,118090.0,1.06304]
[1753739645364,0.83933745,118100.0,118090.0,1.06304]
[1753739646159,0.83941051,118100.0,118090.0,1.06304]
[1753739646467,0.83933745,118100.0,118090.0,1.06304]
[1753739648162,0.85917138,118100.0,118090.0,1.06304]
[1753739648657,0.72727138,118100.0,118090.0,1.06304]
[1753739648856,0.85917138,118100.0,118090.0,1.06304]
[1753739653867,0.85917138,118100.0,118090.0,1.08196]
[1753739654069,0.53379902,118100.0,118090.0,1.08196]
[1753739654371,0.85917138,118100.0,118090.0,1.08196]
[1753739655158,0.8592725,118100.0,118090.0,1.08196]
[1753739655365,0.85917138,118100.0,118090.0,1.08196]
[1753739658870,1.02195038,118100.0,118090.0,1.08196]
[1753739660875,1.02195038,118100.0,118090.0,1.08096]
[1753739661270,1.02203675,118100.0,118090.0,1.08096]
[1753739661476,1.02195038,118100.0,118090.0,1.08096]
[1753739665289,1.26740908,118110.0,118100.0,0.17545]
[1753739665477,1.26740908,118110.0,118100.0,0.41952568]
[1753739666179,1.26740908,118110.0,118100.0,0.40717]
[1753739666384,1.26740908,118110.0,118100.0,0.65124568]
[1753739666684,1.26840908,118110.0,118100.0,0.65124568]
[1753739666882,1.26840908,118110.0,118100.0,0.40717]
[1753739667185,1.27040908,118110.0,118100.0,0.40717]
[1753739668286,1.27040908,118110.0,118100.0,0.65124568]
[1753739669488,1.41416809,118110.0,118100.0,0.65124568]
[1753739671288,1.11044035,118110.0,118100.0,0.65124568]
[1753739671489,1.15277895,118110.0,118100.0,0.65124568]
[1753739671694,1.23745615,118110.0,118100.0,0.65124568]
[1753739673289,1.23749615,118110.0,118100.0,0.65124568]
[1753739674791,1.23749615,118110.0,118100.0,0.40717]
[1753739674992,1.23749615,118110.0,118100.0,0.65124568]
[1753739676095,0.72957129,118110.0,118100.0,0.65124568]
[1753739676287,1.41265129,118110.0,118100.0,0.65124568]
[1753739677194,1.43219748,118110.0,118100.0,0.65124568]
[1753739682705,0.74911748,118110.0,118100.0,0.65124568]
[1753739682908,1.43127748,118110.0,118100.0,0.65124568]
[1753739685610,0.74911748,118110.0,118100.0,0.65124568]
[1753739685810,1.43095748,118110.0,118100.0,0.65124568]
[1753739688410,0.74911748,118110.0,118100.0,0.65124568]
[1753739688615,1.43059748,118110.0,118100.0,0.65124568]
[1753739689812,1.43059748,118110.0,118100.0,0.40717]
[1753739691313,0.74911748,118110.0,118100.0,0.40717]
[1753739691509,1.43035748,118110.0,118100.0,0.40717]
[1753739693713,1.43035748,118110.0,118100.0,0.41116]
[1753739700108,1.43035748,118110.0,118100.0,0.0476]
[1753739700315,1.67443316,118110.0,118100.0,0.12375]
[1753739702117,1.67443316,118110.0,118100.0,0.21263]
[1753739702318,1.67443316,118110.0,118100.0,0.34976]
[1753739702518,1.43035748,118110.0,118100.0,0.34976]
[1753739704827,1.67443316,118110.0,118100.0,0.41809]
[1753739706315,1.67443316,118110.0,118100.0,0.0476]
[1753739707922,0.1693705,118090.0,118080.0,0.36558568]
[1753739708225,0.43299237,118090.0,118080.0,0.65992568]
[1753739709419,0.43299237,118090.0,118080.0,0.66092568]
[1753739710119,0.45345111,118090.0,118080.0,0.66092568]
[1753739710423,0.59721012,118090.0,118080.0,0.41685]
[1753739711225,0.59721012,118090.0,118080.0,0.66092568]
[1753739713432,0.59721012,118090.0,118080.0,0.41685]
[1753739713624,0.59721012,118090.0,118080.0,0.66092568]
[1753739713927,0.8412858,118090.0,118080.0,0.41685]
[1753739714428,1.5245258,118090.0,118080.0,0.41685]
[1753739714616,1.28045012,118090.0,118080.0,0.41685]
[1753739716228,1.5245258,118090.0,118080.0,0.04636]
[1753739716829,0.8412858,118090.0,118080.0,0.04636]
[1753739717032,1.28049012,118090.0,118080.0,0.04636]
[1753739717328,1.28037012,118090.0,118080.0,0.04636]
[1753739718426,1.5244458,118090.0,118080.0,0.04636]
[1753739723526,1.50489961,118090.0,118080.0,0.04636]
[1753739723727,1.52462241,118090.0,118080.0,0.04636]
[1753739727734,1.52462241,118090.0,118080.0,0.04536]
[1753739733742,1.03647105,118090.0,118080.0,0.04536]
[1753739733931,1.28054673,118090.0,118080.0,0.04536]
[1753739736346,0.59738673,118090.0,118080.0,0.21095]
[1753739736549,1.27830673,118090.0,118080.0,0.64772568]
[1753739736846,1.52238241,118090.0,118080.0,0.21095]
[1753739737243,0.1693848,118080.0,118070.0,0.40723]
[1753739737443,0.67725896,118080.0,118070.0,0.40723]
[1753739739147,0.1891076,118080.0,118070.0,0.40723]
[1753739739347,0.67725896,118080.0,118070.0,0.40723]
[1753739740451,0.82101797,118080.0,118070.0,0.40723]
[1753739741950,0.82101797,118080.0,118070.0,0.04894]
[1753739742542,0.82101797,118080.0,118070.0,0.30784]
[1753739742747,0.82101797,118080.0,118070.0,0.40723]
[1753739743053,0.82301797,118080.0,118070.0,0.40723]
[1753739743255,0.82401797,118080.0,118070.0,0.40723]
[1753739753354,0.82401797,118080.0,118040.0,0.21221301]
[1753739753355,0.0423508,118070.0,118040.0,0.21221301]
[1753739753567,1.22111758,118060.0,118050.0,0.40961]
[1753739753757,1.24084038,118060.0,118050.0,0.40961]
[1753739754752,1.48491606,118060.0,118050.0,0.40961]
[1753739755463,1.62867507,118060.0,118050.0,0.40961]
[1753739755763,1.62867507,118060.0,118050.0,0.41061]
[1753739758461,0.70403939,118060.0,118050.0,0.65468568]
[1753739758664,1.38415939,118060.0,118050.0,0.65468568]
[1753739759758,1.62823507,118060.0,118050.0,0.41061]
[1753739762062,1.62823507,118060.0,118050.0,0.65468568]
[1753739762768,1.62823507,118060.0,118050.0,0.05008]
[1753739762960,1.62823507,118060.0,118050.0,0.21704]
[1753739763156,1.62823507,118060.0,118050.0,0.34098]
[1753739763364,1.62823507,118060.0,118050.0,0.41061]
[1753739763670,0.94811507,118060.0,118050.0,0.41061]
[1753739763865,1.62787507,118060.0,118050.0,0.41061]
[1753739766266,1.62783507,118060.0,118050.0,0.41061]
[1753739769071,0.94811507,118060.0,118050.0,0.41061]
[1753739769367,1.62743507,118060.0,118050.0,0.41061]
[1753739775774,1.62743507,118060.0,118050.0,0.65468568]
[1753739775775,1.62675507,118060.0,118050.0,0.65468568]
[1753739776875,1.62675507,118060.0,118050.0,0.41061]
[1753739780973,0.94811507,118060.0,118050.0,0.41061]
[1753739781170,1.62639507,118060.0,118050.0,0.41061]
[1753739784671,0.94811507,118060.0,118050.0,0.41061]
[1753739784870,1.62635507,118060.0,118050.0,0.41061]
[1753739786378,0.94811507,118060.0,118050.0,0.41061]
[1753739786670,1.62635507,118060.0,118050.0,0.41061]
[1753739796482,1.87043075,118060.0,118050.0,0.04974]
[1753739796677,1.62635507,118060.0,118050.0,0.04974]
[1753739800799,0.1694421,118040.0,118030.0,0.40193]
[1753739801091,0.67731626,118040.0,118030.0,0.40193]
[1753739801493,0.69574054,118040.0,118030.0,0.40193]
[1753739802001,0.76372649,118040.0,118030.0,0.40193]
[1753739802497,0.76372649,118040.0,118030.0,0.40293]
[1753739803098,0.76372649,118040.0,118030.0,0.40493]
[1753739805303,0.9074855,118040.0,118030.0,0.40493]
[1753739808307,0.9074855,118040.0,118030.0,0.33469]
[1753739808511,1.5857655,118040.0,118030.0,0.05174]
[1753739809403,1.5660427,118040.0,118030.0,0.05174]
[1753739810703,1.5670427,118040.0,118030.0,0.05074]
[1753739810901,1.5670427,118040.0,118030.0,0.04874]
[1753739811106,1.58656434,118040.0,118030.0,0.04874]
[1753739811506,1.58756434,118040.0,118030.0,0.04874]
[1753739811899,1.58656434,118040.0,118030.0,0.04874]
[1753739812104,1.58856434,118040.0,118030.0,0.04874]
[1753739816514,1.58856434,118040.0,118030.0,0.17119]
[1753739818720,1.58856434,118040.0,118030.0,0.04874]
[1753739823525,0.1694707,118020.0,118010.0,0.64472568]
[1753739823824,0.43306802,118020.0,118010.0,0.64472568]
[1753739824421,0.43306802,118020.0,118010.0,0.40065]
[1753739824621,0.43306802,118020.0,118010.0,0.64472568]
[1753739824821,0.43306802,118020.0,118010.0,0.64572568]
[1753739825323,0.57682703,118020.0,118010.0,0.64572568]
[1753739828127,0.57682703,118020.0,118010.0,0.40165]
[1753739828327,0.57682703,118020.0,118010.0,0.64572568]
[1753739838931,0.33275135,118020.0,118010.0,0.64572568]
[1753739839233,0.57682703,118020.0,118010.0,0.64572568]
[1753739839430,0.57682703,118020.0,118010.0,1.32392568]
[1753739841735,0.33275135,118020.0,118010.0,1.32392568]
[1753739841930,0.57682703,118020.0,118010.0,1.32392568]
[1753739842738,0.57682703,118020.0,118010.0,0.64572568]
[1753739842942,0.57682703,118020.0,118010.0,1.32392568]
[1753739847742,0.57682703,118020.0,118010.0,1.32388568]
[1753739848950,0.57682703,118020.0,118010.0,0.64572568]
[1753739849146,0.57682703,118020.0,118010.0,1.32388568]
[1753739850238,0.33275135,118020.0,118010.0,1.32388568]
[1753739850449,0.57682703,118020.0,118010.0,1.32388568]
[1753739851752,0.33275135,118020.0,118010.0,1.32388568]
[1753739852251,0.57682703,118020.0,118010.0,1.32388568]
[1753739852450,0.33275135,118020.0,118010.0,1.32388568]
[1753739852750,0.57682703,118020.0,118010.0,1.32388568]
[1753739865562,0.33275135,118020.0,118010.0,1.32388568]
[1753739865764,0.57682703,118020.0,118010.0,1.32388568]
[1753739868270,0.33275135,118020.0,118010.0,1.32388568]
[1753739868470,0.57682703,118020.0,118010.0,1.32388568]
[1753739869570,0.33275135,118020.0,118010.0,1.32388568]
[1753739895187,0.33275135,118020.0,118010.0,1.49337088]
[1753739895383,0.084718,118050.0,118030.0,0.3268165]
[1753739895590,0.2965057,118050.0,118040.0,1.72996346]
[1753739895894,0.23030298,118060.0,118050.0,0.5641977]
[1753739896085,0.23030298,118060.0,118050.0,1.05234906]
[1753739896392,0.1694277,118060.0,118050.0,1.05234906]
[1753739897391,0.1734277,118060.0,118050.0,1.05234906]
[1753739897986,0.1774277,118060.0,118050.0,1.05234906]
[1753739898489,0.1734277,118060.0,118050.0,1.05234906]
[1753739898689,0.32018671,118060.0,118050.0,1.05234906]
[1753739899089,0.31918671,118060.0,118050.0,1.05234906]
[1753739907397,0.33720579,118060.0,118050.0,1.05234906]
[1753739910499,0.33720579,118060.0,118050.0,0.5641977]
[1753739910699,0.33720579,118060.0,118050.0,1.05234906]
[1753739923302,0.14975901,118060.0,118050.0,1.07088228]
[1753739923509,0.01483171,118080.0,118070.0,0.563419]
[1753739923510,0.2540943,118080.0,118070.0,0.563419]
[1753739923706,0.3143116,118080.0,118070.0,1.72865036]
[1753739923902,0.2296137,118080.0,118070.0,1.72865036]
[1753739924111,0.1872654,118080.0,118070.0,1.72865036]
[1753739924907,0.1922654,118080.0,118070.0,1.72865036]
[1753739925117,0.1922527,118080.0,118070.0,1.74740881]
[1753739925410,0.1952527,118080.0,118070.0,1.74740881]
[1753739926604,0.33901171,118080.0,118070.0,1.74740881]
[1753739927299,0.33901171,118080.0,118070.0,1.76231113]
[1753739930103,0.2117263,118090.0,118080.0,0.1693847]
[1753739930308,0.2117263,118090.0,118080.0,1.29563174]
[1753739930705,0.0847144,118110.0,118100.0,0.23815]
[1753739930911,0.2963946,118110.0,118100.0,1.72848736]
[1753739931209,0.3441946,118110.0,118100.0,1.72848736]
[1753739931913,0.3441946,118110.0,118100.0,1.97256304]
[1753739932110,0.3471946,118110.0,118100.0,1.97256304]
[1753739932613,0.3471946,118110.0,118100.0,1.72848736]
[1753739933409,0.55746732,118110.0,118100.0,1.72848736]
[1753739933610,0.50966732,118110.0,118100.0,1.72848736]
[1753739934209,0.55746732,118110.0,118100.0,1.72848736]
[1753739935014,0.55746732,118110.0,118100.0,1.56555553]
[1753739935416,0.51512882,118110.0,118100.0,1.56555553]
[1753739935914,0.51512882,118110.0,118100.0,1.56655553]
[1753739938415,0.14679901,118110.0,118100.0,1.56655553]
[1753739941312,0.14479901,118110.0,118100.0,1.56655553]
[1753739942419,0.2116692,118120.0,118110.0,0.2774917]
[1753739942608,0.36483832,118130.0,118120.0,0.5633473]
[1753739942808,0.4063034,118140.0,118130.0,0.5633329]
[1753739943119,0.66445888,118140.0,118130.0,0.88855243]
[1753739943316,0.65996784,118140.0,118130.0,0.88855243]
[1753739943526,0.575602,118140.0,118130.0,0.88855243]
[1753739943711,0.253952,118140.0,118130.0,0.90724555]
[1753739944320,0.301752,118140.0,118130.0,0.90724555]
[1753739944508,0.301752,118140.0,118130.0,0.92183088]
[1753739944717,0.301752,118140.0,118130.0,0.90724555]
[1753739945219,0.453132,118140.0,118130.0,0.90724555]
[1753739945622,0.454132,118140.0,118130.0,0.90724555]
[1753739945820,0.67456101,118140.0,118130.0,0.90724555]
[1753739946320,0.69499091,118140.0,118130.0,0.90724555]
[1753739946513,0.67756101,118140.0,118130.0,0.90724555]
[1753739946710,0.69498856,118140.0,118130.0,0.90724555]
[1753739946914,0.69198856,118140.0,118130.0,0.90724555]
[1753739947114,0.69198856,118140.0,118130.0,0.92059474]
[1753739947524,0.67456101,118140.0,118130.0,0.92059474]
[1753739947726,0.72036101,118140.0,118130.0,0.90724555]
[1753739948123,0.79178101,118140.0,118130.0,0.90724555]
[1753739948324,0.80921339,118140.0,118130.0,0.90724555]
[1753739949827,0.39871101,118140.0,118130.0,0.90724555]
[1753739950325,0.72036101,118140.0,118130.0,0.90724555]
[1753739950717,0.79178101,118140.0,118130.0,0.90724555]
[1753739951826,0.79178101,118140.0,118130.0,0.92092886]
[1753739953330,0.80924297,118140.0,118130.0,0.92092886]
[1753739955631,0.80924297,118140.0,118130.0,0.90724555]
[1753739959833,0.80926574,118140.0,118130.0,0.90724555]
[1753739960728,0.80926574,118140.0,118130.0,0.92052792]
[1753739962033,0.79178101,118140.0,118130.0,0.92052792]
[1753739962331,0.80855943,118140.0,118130.0,0.92052792]
[1753739962736,0.80855943,118140.0,118130.0,1.08286111]
[1753739967534,0.79178101,118140.0,118130.0,1.08286111]
[1753739968235,0.80860043,118140.0,118130.0,1.08286111]
[1753739968434,0.1692951,118150.0,118140.0,0.570978]
[1753739968640,0.23289254,118150.0,118140.0,1.97858708]
[1753739969433,0.38599254,118150.0,118140.0,1.97858708]
[1753739969635,0.38699254,118150.0,118140.0,1.97858708]
[1753739970239,0.38899254,118150.0,118140.0,1.97858708]
[1753739970540,0.38899254,118150.0,118140.0,2.24148708]
[1753739970738,0.38899254,118150.0,118140.0,1.83510335]
[1753739971627,0.53275155,118150.0,118140.0,1.90289042]
[1753739972238,0.53275155,118150.0,118140.0,1.63999042]
[1753739976242,0.51593411,118150.0,118140.0,1.63999042]
[1753739980247,0.51593411,118150.0,118140.0,1.68550261]
[1753739980548,0.51593411,118150.0,118140.0,1.63999042]
[1753739981050,0.59724411,118150.0,118140.0,1.63999042]
[1753739981450,0.59724411,118150.0,118140.0,1.68550261]
[1753739984554,0.31605411,118150.0,118140.0,1.68550261]
[1753739985054,0.36369411,118150.0,118140.0,1.68550261]
[1753739985857,0.31605411,118150.0,118140.0,1.68550261]
[1753739986152,0.36369411,118150.0,118140.0,1.68550261]
[1753739986654,0.51072411,118150.0,118140.0,1.68550261]
[1753739990852,0.58971411,118150.0,118140.0,2.09170109]
[1753739991859,0.58971411,118150.0,118140.0,2.0461889]
[1753739994060,0.31605411,118150.0,118140.0,2.0461889]
[1753739994560,0.36369411,118150.0,118140.0,2.0461889]
[1753739995359,0.36369411,118150.0,118140.0,2.1070536]
[1753739996061,0.36369411,118150.0,118140.0,3.2773336]
[1753740000450,0.36368271,118150.0,118140.0,2.6010536]
[1753740000655,0.51071271,118150.0,118140.0,3.2769336]
[1753740000855,0.51071271,118150.0,118140.0,1.86990977]
[1753740001162,0.22638901,118150.0,118140.0,3.2769336]
[1753740001359,0.3364875,118160.0,118150.0,0.5637904]
[1753740001554,0.4515275,118160.0,118150.0,1.34056756]
[1753740002263,0.4515275,118160.0,118150.0,1.09685295]
[1753740002457,0.5235775,118160.0,118150.0,1.09685295]
[1753740002762,0.5585675,118160.0,118150.0,1.09685295]
[1753740003864,0.57546778,118160.0,118150.0,1.09685295]
[1753740004061,0.57546778,118160.0,118150.0,1.77269295]
[1753740004263,0.62310778,118160.0,118150.0,1.77269295]
[1753740004462,0.76686679,118160.0,118150.0,1.77269295]
[1753740005359,0.71922679,118160.0,118150.0,1.77269295]
[1753740007168,0.70232651,118160.0,118150.0,1.72705962]
[1753740009464,0.47339651,118160.0,118150.0,1.72705962]
[1753740009770,0.47339651,118160.0,118150.0,1.97077423]
[1753740009972,0.55238651,118160.0,118150.0,1.97077423]
[1753740010173,0.67033651,118160.0,118150.0,1.72705962]
[1753740010364,0.70232651,118160.0,118150.0,1.72705962]
[1753740012073,0.70232651,118160.0,118150.0,1.97077423]
[1753740012268,0.70232651,118160.0,118150.0,1.72705962]
[1753740020780,0.35835651,118160.0,118150.0,1.72705962]
[1753740021079,0.35835651,118160.0,118150.0,1.97077423]
[1753740021278,0.35835651,118160.0,118150.0,1.72705962]
[1753740021982,0.0541073,118160.0,118150.0,1.97077423]
[1753740022171,0.2115538,118180.0,118170.0,0.15706]
[1753740022374,0.18692469,118180.0,118170.0,1.97026593]
[1753740022575,0.01768689,118180.0,118170.0,1.97026593]
[1753740022773,0.01768689,118180.0,118170.0,1.98883962]
[1753740023382,0.3280128,118190.0,118180.0,0.5633878]
[1753740023582,0.46547487,118190.0,118180.0,1.29453163]
[1753740023877,0.01768207,118190.0,118180.0,1.29453163]
[1753740024080,0.18690557,118190.0,118180.0,1.29453163]
[1753740024286,0.01768207,118190.0,118180.0,1.29453163]
[1753740024582,0.01868207,118190.0,118180.0,1.3068338]
[1753740025393,0.18790557,118190.0,118180.0,1.3068338]
[1753740025582,0.33166449,118190.0,118180.0,1.3068338]
[1753740026182,0.16144099,118190.0,118180.0,1.3068338]
[1753740026887,0.33066449,118190.0,118180.0,1.3068338]
[1753740027788,0.31298242,118190.0,118180.0,1.3068338]
[1753740030786,0.14375892,118190.0,118180.0,1.3068338]
[1753740037890,0.31298442,118190.0,118180.0,1.3068338]
[1753740038887,0.31298442,118190.0,118180.0,1.9823138]
[1753740039899,0.31298442,118190.0,118180.0,1.82524061]
[1753740040094,0.14375892,118190.0,118180.0,1.82524061]
[1753740041191,0.31298442,118190.0,118180.0,1.82524061]
[1753740042494,0.14375892,118190.0,118180.0,1.82524061]
[1753740051796,0.14375892,118190.0,118180.0,1.88610531]
[1753740055901,0.14375892,118190.0,118180.0,2.46017595]
[1753740056100,0.3333153,118200.0,118180.0,2.46017595]
[1753740056101,0.1987174,118220.0,118210.0,0.2485368]
[1753740056309,0.61858585,118220.0,118210.0,1.6326513]
[1753740056500,0.57628735,118220.0,118210.0,1.6326513]
[1753740056805,0.29509455,118220.0,118210.0,1.82400818]
[1753740057000,0.26345455,118220.0,118210.0,1.88179719]
[1753740057202,0.001,118220.0,118210.0,1.95108015]
[1753740058006,0.5595194,118230.0,118220.0,0.3230925]
[1753740058210,0.57640781,118230.0,118220.0,1.13007314]
[1753740058397,0.5595194,118230.0,118220.0,1.17566052]
[1753740059406,0.5605194,118230.0,118220.0,1.17566052]
[1753740060202,0.5615194,118230.0,118220.0,1.17566052]
[1753740062112,0.2136094,118230.0,118220.0,1.17566052]
[1753740062308,0.4178847,118230.0,118220.0,1.17566052]
[1753740062707,0.5192247,118230.0,118220.0,1.17566052]
[1753740066312,0.5192247,118230.0,118220.0,1.13007314]
[1753740066811,0.5192247,118230.0,118220.0,1.17566052]
[1753740068216,0.4495247,118230.0,118220.0,1.17566052]
[1753740068622,0.5192247,118230.0,118220.0,1.17566052]
[1753740069721,0.4495247,118230.0,118220.0,1.17566052]
[1753740069920,0.12692,118230.0,118220.0,1.17566052]
[1753740070124,0.00214,118230.0,118220.0,1.17566052]
[1753740070914,0.12393,118230.0,118220.0,1.17566052]
[1753740072520,0.00214,118230.0,118220.0,1.17566052]
[1753740077132,0.1713083,118230.0,118220.0,1.17566052]
[1753740078331,0.00214,118230.0,118220.0,1.17566052]
[1753740078718,0.24516,118240.0,118230.0,0.5575782]
[1753740078926,0.24516,118240.0,118230.0,1.87105706]
[1753740079121,0.3325745,118250.0,118240.0,0.5575639]
[1753740079325,0.34698,118250.0,118240.0,1.13163454]
[1753740079523,0.5584014,118260.0,118250.0,0.5575496]
[1753740079719,0.5584014,118260.0,118250.0,2.79886425]
[1753740083133,0.4898714,118260.0,118250.0,2.79886425]
[1753740083336,0.5584014,118260.0,118250.0,2.79886425]
[1753740083936,0.2114214,118260.0,118250.0,2.79886425]
[1753740084142,0.3320114,118260.0,118250.0,2.79886425]
[1753740084332,0.2114214,118260.0,118250.0,2.79886425]
[1753740084532,0.2902714,118260.0,118250.0,2.79886425]
[1753740084836,0.4565814,118260.0,118250.0,2.79886425]
[1753740085135,0.5584014,118260.0,118250.0,2.79886425]
[1753740086143,0.4898714,118260.0,118250.0,2.79886425]
[1753740086445,0.57514558,118260.0,118250.0,2.79886425]
[1753740086846,0.50661558,118260.0,118250.0,2.79886425]
[1753740088341,0.22816558,118260.0,118250.0,2.79886425]
[1753740088840,0.47332558,118260.0,118250.0,2.79886425]
[1753740089748,0.54185558,118260.0,118250.0,2.79886425]
[1753740092957,0.47332558,118260.0,118250.0,2.79886425]
[1753740096450,0.35273558,118260.0,118250.0,2.79886425]
[1753740096657,0.3359914,118260.0,118250.0,2.84445163]
[1753740096849,0.4565814,118260.0,118250.0,2.84445163]
[1753740098757,0.4565814,118260.0,118250.0,2.15533074]
[1753740099055,0.4565814,118260.0,118250.0,2.83297074]
[1753740101853,0.4565814,118260.0,118250.0,2.84475906]
[1753740104061,0.2902714,118260.0,118250.0,2.84475906]
[1753740105257,0.2114214,118260.0,118250.0,2.84475906]
[1753740106170,0.2114214,118260.0,118250.0,2.79917168]
[1753740106557,0.2114214,118260.0,118250.0,2.99052856]
[1753740106961,0.2114214,118260.0,118250.0,2.79917168]
[1753740107365,0.2114214,118260.0,118250.0,2.99052856]
[1753740107668,0.2114214,118260.0,118250.0,2.79917168]
[1753740110270,0.2114214,118260.0,118250.0,2.12153168]
[1753740110459,0.98206516,118260.0,118250.0,0.06464473]
[1753740110761,0.2448641,118240.0,118230.0,0.0608647]
[1753740110963,0.4949584,118230.0,118220.0,1.2015196]
[1753740111169,0.70850376,118230.0,118210.0,0.07934544]
[1753740111461,0.3354114,118200.0,118190.0,1.35201462]
[1753740111767,0.71812516,118200.0,118190.0,1.84804]
[1753740111958,0.69597628,118200.0,118190.0,2.03939688]
[1753740112160,0.3334114,118200.0,118190.0,1.18222688]
[1753740112359,0.3334114,118200.0,118190.0,1.41930268]
[1753740112764,0.3334114,118200.0,118190.0,1.48613981]
[1753740113262,0.3324114,118200.0,118190.0,1.48613981]
[1753740114170,0.3324114,118200.0,118190.0,1.48813981]
[1753740115164,0.1662114,118200.0,118190.0,1.48813981]
[1753740115371,0.2538112,118210.0,118200.0,0.3229123]
[1753740115572,0.1692096,118210.0,118200.0,1.05932032]
[1753740115759,0.1691791,118230.0,118220.0,0.3715837]
[1753740115965,0.1691791,118230.0,118220.0,1.48337771]
[1753740116165,0.2114577,118240.0,118230.0,0.5488893]
[1753740116360,0.2114577,118240.0,118230.0,0.80408331]
[1753740116761,0.253726,118250.0,118240.0,0.169155]
[1753740117073,0.253706,118260.0,118250.0,0.5488607]
[1753740117273,0.253706,118260.0,118250.0,0.80405471]
[1753740117568,0.1691376,118260.0,118250.0,0.80405471]
[1753740117781,0.1691264,118260.0,118250.0,0.93090381]
[1753740118076,0.2536794,118270.0,118260.0,0.5488464]
[1753740118260,0.27300259,118270.0,118260.0,2.65312041]
[1753740118464,0.2536794,118270.0,118260.0,2.65312041]
[1753740119175,0.2566794,118270.0,118260.0,2.65312041]
[1753740121268,0.003,118270.0,118260.0,2.90831442]
[1753740121462,0.003,118270.0,118260.0,2.65312041]
[1753740122576,0.1721121,118270.0,118260.0,2.65312041]
[1753740123579,0.1691121,118270.0,118260.0,2.65312041]
[1753740123776,0.2959393,118280.0,118270.0,0.2742421]
[1753740123986,0.2959393,118280.0,118270.0,0.80402611]
[1753740124281,0.4402693,118280.0,118270.0,0.80402611]
[1753740124979,0.3979919,118280.0,118270.0,0.80402611]
[1753740126379,0.3989919,118280.0,118270.0,0.80402611]
[1753740127574,0.3989919,118280.0,118270.0,1.50206611]
[1753740130586,0.3046319,118280.0,118270.0,1.50206611]
[1753740130785,0.2623546,118280.0,118270.0,1.50206611]
[1753740130982,0.2123846,118280.0,118270.0,1.50206611]
[1753740133184,0.3311346,118280.0,118270.0,1.50206611]
[1753740135191,0.2623546,118280.0,118270.0,1.50206611]
[1753740135392,0.2623546,118280.0,118270.0,1.50042611]
[1753740136998,0.2123846,118280.0,118270.0,1.50042611]
[1753740142298,0.2123846,118280.0,118270.0,1.5191961]
[1753740142494,0.001,118280.0,118270.0,1.77439011]
[1753740142692,0.2113424,118300.0,118290.0,0.5495932]
[1753740142896,0.18893103,118300.0,118290.0,1.49998721]
[1753740143293,0.01986213,118300.0,118290.0,1.49998721]
[1753740143497,0.18893103,118300.0,118290.0,1.49998721]
[1753740143801,0.1690689,118300.0,118290.0,1.49998721]
[1753740144003,0.1700689,118300.0,118290.0,1.49998721]
[1753740145291,0.0002089,118300.0,118290.0,1.51916239]
[1753740146200,0.1692779,118300.0,118290.0,1.51916239]
[1753740147196,0.4430333,118290.0,118280.0,0.04913]
[1753740147400,0.83548398,118290.0,118280.0,0.74653]
[1753740147700,0.83548398,118290.0,118270.0,0.708362]
[1753740147701,0.3283276,118280.0,118270.0,0.01876999]
[1753740147898,0.5604219,118270.0,118260.0,1.16916]
[1753740148102,0.4916705,118250.0,118240.0,0.63570401]
[1753740148292,0.4916705,118250.0,118240.0,0.69812]
[1753740148293,0.5604505,118250.0,118240.0,0.69812]
[1753740148601,0.5594505,118250.0,118240.0,0.04913]
[1753740148802,0.5604648,118240.0,118230.0,0.03154]
[1753740148998,0.5604648,118240.0,118230.0,0.77903]
[1753740149191,0.5118991,118230.0,118220.0,1.42419401]
[1753740149391,0.81567311,118230.0,118220.0,1.86732]
[1753740149599,0.98484111,118230.0,118220.0,1.86732]
[1753740149996,0.5605077,118210.0,118200.0,0.63570401]
[1753740150297,0.5555077,118210.0,118200.0,1.33410401]
[1753740150902,0.5555077,118210.0,118200.0,1.07891]
[1753740151202,0.5555077,118210.0,118200.0,1.248122]
[1753740152199,0.5555077,118210.0,118200.0,1.54713879]
[1753740152501,0.1691976,118210.0,118200.0,1.67404169]
[1753740152699,0.5965079,118230.0,118220.0,0.5496933]
[1753740153003,0.2680761,118250.0,118230.0,0.288269]
[1753740153303,0.1671404,118250.0,118240.0,1.54696149]
[1753740153499,0.2537041,118260.0,118250.0,0.5496504]
[1753740153704,0.2537041,118260.0,118250.0,0.97551649]
[1753740153705,0.02006803,118260.0,118250.0,0.97551649]
[1753740153911,0.2536632,118280.0,118270.0,0.3989818]
[1753740154102,0.23145225,118280.0,118270.0,1.39643859]
[1753740154301,0.23145225,118280.0,118270.0,1.22732679]
[1753740154604,0.2378918,118270.0,118260.0,0.18122634]
[1753740154906,0.42125765,118270.0,118260.0,0.23729244]
[1753740155101,0.18917765,118270.0,118260.0,1.41564923]
[1753740155407,0.02006585,118270.0,118260.0,1.41564923]
[1753740155603,0.18917765,118270.0,118260.0,1.41564923]
[1753740155910,0.18917765,118270.0,118260.0,0.92899]
[1753740155911,0.37267765,118270.0,118260.0,0.92899]
[1753740156099,0.42125765,118270.0,118260.0,0.92899]
[1753740156401,0.42125765,118270.0,118260.0,0.05013]
[1753740156606,0.42125765,118270.0,118260.0,0.74957]
[1753740157002,0.42125765,118270.0,118260.0,0.74857]
[1753740157308,0.42125765,118270.0,118260.0,0.86263]
[1753740157508,0.42125765,118270.0,118260.0,1.0317561]
[1753740157701,0.42125765,118270.0,118260.0,0.3999961]
[1753740157900,0.42125765,118270.0,118260.0,1.0995161]
[1753740158206,0.42125765,118270.0,118260.0,0.93039]
[1753740158609,0.42325765,118270.0,118260.0,0.92939]
[1753740159108,0.42125765,118270.0,118260.0,0.92939]
[1753740159406,0.42525765,118270.0,118260.0,0.92939]
[1753740160099,0.3283561,118260.0,118250.0,0.31283]
[1753740160299,0.58050195,118260.0,118250.0,0.74869]
[1753740160502,0.5604361,118260.0,118250.0,0.86175]
[1753740160704,0.4430761,118260.0,118250.0,1.37908679]
[1753740160911,0.1691261,118260.0,118250.0,1.54822719]
[1753740161213,0.004,118270.0,118260.0,0.5496361]
[1753740161409,0.004,118270.0,118260.0,0.86714221]
[1753740161599,0.2536352,118290.0,118280.0,0.22987]
[1753740161800,0.80489014,118290.0,118280.0,0.04913]
[1753740162001,0.23208,118270.0,118260.0,0.01848932]
[1753740162202,0.23208,118270.0,118260.0,0.88135932]
[1753740162203,0.4213525,118270.0,118260.0,0.88135932]
[1753740162402,0.1892725,118270.0,118260.0,1.41718221]
[1753740162604,0.1892718,118270.0,118260.0,1.41718221]